Cogmind - Beta 9.4 @@@ ROGUE MODE // 2020.01.18 @ 17:38:13 // Winter2019/RPGLIKE Player: Cookie Result: Self-destructed Performance ------------- Evolutions (2) 1000 Regions Visited (5) 1000 Robots Destroyed (15) 75 Value Destroyed (442) 442 Prototype IDs (3) 60 Alien Tech Used (0) 0 Bonus (200) 200 TOTAL SCORE: 2777 Bonus ------- Entered Garrisons 200 Cogmind --------- Core Integrity 266/650 Matter 199/300 Energy 103/175 System Corruption 0% Temperature Cool (366) Movement Hovering (116) Ox1 Location -8/Garrison Parts ------- > --- POWER (3) -------- Light Ion Engine Light Ion Engine Light Ion Engine > --- PROPULSION (3) --- Hover Unit Hover Unit > --- UTILITY (4) ------ Improved Sensor Array Advanced Signal Interpreter Particle Charger > --- WEAPON (2) ------- EM Pulse Cannon Flak Cannon > --- INVENTORY (1) ---- Heat Sink Peak State ------------ > --- POWER ------------ Light Ion Engine Light Ion Engine > --- PROPULSION ------- Hover Unit Hover Unit > --- UTILITY ---------- Heat Sink Improved Sensor Array Advanced Signal Interpreter Particle Charger > --- WEAPON ----------- EM Pulse Cannon Flak Cannon > --- INVENTORY -------- (None) [Rating: 19] Favorites ----------- Power Light Ion Engine Engine Light Ion Engine Propulsion Compact Wheel Wheel Compact Wheel Hover Unit Hover Unit Flight Unit Flight Unit Utility Structural Scanner Device Structural Scanner Storage Large Matter Pod Processor Advanced Signal Interpreter Weapon Assault Rifle Energy Gun Medium Laser Energy Cannon EM Pulse Cannon Ballistic Gun Assault Rifle Ballistic Cannon Flak Cannon Build | -11 -10 -10 -9 -8 -8 ------- Run | Scr Mat Min Mat Mat Gar Slots Evolved 8 | 5 . 1 1 1 . Power 2 | 1 . . . 1 . Propulsion 2 | 1 . 1 . . . Utility 3 | 2 . . 1 . . Weapon 1 | 1 . . . . . Parts Attached 28 | 6 3 10 5 3 1 Power 3 | 2 . . . . 1 Engine 3 | 2 . . . . 1 Core . | . . . . . . Reactor . | . . . . . . Propulsion 11 | 2 . 7 2 . . Treads . | . . . . . . Leg . | . . . . . . Wheel 4 | 2 . 2 . . . Hover 2 | . . . 2 . . Flight 5 | . . 5 . . . Utility 10 | . 3 2 3 2 . Device 7 | . 2 1 3 1 . Storage 1 | . 1 . . . . Processor 2 | . . 1 . 1 . Hackware . | . . . . . . Protection . | . . . . . . Artifact . | . . . . . . Weapon 4 | 2 . 1 . 1 . Energy Gun 1 | 1 . . . . . Energy Cannon 1 | . . 1 . . . Ballistic Gun 1 | 1 . . . . . Ballistic Cannon 1 | . . . . 1 . Launcher . | . . . . . . Special Weapon . | . . . . . . Impact Weapon . | . . . . . . Slashing Weapon . | . . . . . . Piercing Weapon . | . . . . . . Special Melee Weapon . | . . . . . . Unidentified Prototypes . | . . . . . . Parts Lost . | . . . . . . Power . | . . . . . . Propulsion . | . . . . . . Utility . | . . . . . . Weapon . | . . . . . . Highest Loss Streak . | . . . . . . Average Slot Usage (%) 88 | . 89 97 79 82 79 Engine 20 | . 22 21 18 16 20 Wheel 10 | . 22 14 . . . Hover 5 | . . . 7 16 16 Flight 3 | . . 6 15 . . Device 20 | . 19 21 20 25 16 Storage 4 | . 3 9 . . . Processor 2 | . . 1 . 7 8 Energy Gun 5 | . 11 9 . . . Energy Cannon 3 | . . 1 9 8 8 Ballistic Gun 7 | . 11 10 9 1 . Ballistic Cannon 2 | . . . . 6 8 Naked Turns . | . . . . . . Heaviest Build 25 | 10 15 16 17 23 25 Greatest Support 32 | 32 32 32 22 22 22 Greatest Overweight (x) 5 | . . 5 1 1 1 Average Overweight (x) . | . . . . . . Largest Inventory Capacity 1 | . . . 1 1 1 Average Capacity . | . . . . 1 1 Most Carried 1 | . . . 1 1 1 Average Carried . | . . . . . . Final Capacity 1 | . . . 1 1 1 Final Carried 1 | . . . . . 1 Class Distribution -------------------- 100% | Mutant Dominant Class ---------------- Mutant | -10/Materials Mutant | -10/Mines Mutant | -9/Materials Mutant | -8/Materials Mutant | -8/Garrison Resources | -11 -10 -10 -9 -8 -8 ----------- Run | Scr Mat Min Mat Mat Gar Matter Collected 617 | 260 . 250 48 . 59 Remotely . | . . . . . . Salvage Created 206 | . . 147 . . 59 Parts 36 | . . 19 . 6 11 Haulers Intercepted . | . . . . . . Recyclers Shooed . | . . . . . . Parts Field Recycled . | . . . . . . Retrieved Matter . | . . . . . . Parts Self-Destructed . | . . . . . . Prevented . | . . . . . . Kills | -11 -10 -10 -9 -8 -8 ------- Run | Scr Mat Min Mat Mat Gar Combat Hostiles Destroyed 14 | . . 7 . 1 6 Guns 7 | . . 7 . . . Cannons 7 | . . . . 1 6 Classes Destroyed 5 | . . 3 . 1 1 Recycler 1 | . . 1 . . . Swarmer 11 | . . 6 . . 5 Grunt 1 | . . 1 . . . Duelist 1 | . . . . . 1 Sentry 1 | . . . . 1 . Best Kill Streak 5 | . . 3 . 1 5 Combat Bots Only 5 | . . 3 . 1 5 Max Kills in Single Turn 2 | . . 2 . 1 1 Gunslinging 1 | . . 1 . . . Exploded . | . . . . . . Melee . | . . . . . . Uniques/NPCs Destroyed . | . . . . . . Combat | -11 -10 -10 -9 -8 -8 -------- Run | Scr Mat Min Mat Mat Gar Damage Taken 751 | . . 203 33 . 515 Core 593 | . . 155 24 . 414 Absorbed by Shields . | . . . . . . Redirected to Core 468 | . . 135 24 . 309 Core Remaining (%) 97 | 100 . 92 100 . . Volleys Fired 40 | . . 19 6 1 14 Largest 2 | . . 2 2 2 2 Hottest 107 | . . 70 83 107 107 Shots Fired 80 | . . 38 12 2 28 Gun 44 | . . 38 6 . . Cannon 36 | . . . 6 2 28 Launcher . | . . . . . . Special . | . . . . . . Kinetic 40 | . . 19 6 1 14 Thermal 19 | . . 19 . . . Explosive . | . . . . . . Electromagnetic 21 | . . . 6 1 14 Robot Hit Streak 10 | . . 4 3 3 10 Robot Miss Streak 8 | . . 3 3 . 8 Penetration Max . | . . . . . . Secondary Targets 3 | . . 3 . . . Max Gunslinging Chain 1 | . . 1 . . . Shots Hit Robots 44 | . . 19 7 1 17 Core Hits 25 | . . 10 1 1 13 Critical Hits . | . . . . . . Critical Kills . | . . . . . . Critical Parts Destroyed . | . . . . . . Melee Attacks . | . . . . . . Impact . | . . . . . . Slashing . | . . . . . . Piercing . | . . . . . . Sneak Attacks . | . . . . . . Combat Hostiles . | . . . . . . Follow-up Attacks . | . . . . . . Damage Inflicted 773 | . . 247 162 24 340 Guns 291 | . . 247 44 . . Cannons 482 | . . . 118 24 340 Explosions . | . . . . . . Melee . | . . . . . . Ramming . | . . . . . . Kinetic 278 | . . 87 44 . 147 Thermal 160 | . . 160 . . . Explosive . | . . . . . . Electromagnetic 335 | . . . 118 24 193 Impact . | . . . . . . Slashing . | . . . . . . Piercing . | . . . . . . Highest Corruption . | . . . . . . Average Corruption . | . . . . . . Corruption Purged . | . . . . . . Overload Shots . | . . . . . . Overflow Damage 5 | . . . . . 5 Projectiles 5 | . . . . . 5 Explosions . | . . . . . . Melee . | . . . . . . Knockbacks 6 | . . . . . 6 Impact . | . . . . . . Kinetic 6 | . . . . . 6 Secondary . | . . . . . . Self-Inflicted Damage . | . . . . . . Shots . | . . . . . . Rammed . | . . . . . . Targets Rammed . | . . . . . . Kicked . | . . . . . . Crushed . | . . . . . . Highest Temperature 366 | . . 240 270 54 366 Average Temperature 106 | . . 82 135 29 123 Received Heat Transfer 108 | . . . 18 . 90 Siege Activations . | . . . . . . Robots Corrupted . | . . . . . . Combat Hostiles . | . . . . . . Parts Fried . | . . . . . . Impact Corruptions . | . . . . . . Robots Melted . | . . . . . . Combat Hostiles . | . . . . . . Parts Melted . | . . . . . . Heat Transferred 481 | . . 481 . . . Parts Sabotaged . | . . . . . . Parts Stolen . | . . . . . . Parts Stripped . | . . . . . . Power Chain Reactions . | . . . . . . Missiles Intercepted . | . . . . . . Alert | -11 -10 -10 -9 -8 -8 ------- Run | Scr Mat Min Mat Mat Gar Peak Influence 370 | . 46 207 125 116 370 Average Influence 97 | . 41 98 94 69 204 Maximum Alert Level 1 | . . 1 . . 1 Low Security (%) 84 | 100 100 85 100 100 40 Level 1 15 | . . 14 . . 59 Level 2 . | . . . . . . Level 3 . | . . . . . . Level 4 . | . . . . . . Level 5 . | . . . . . . High Security . | . . . . . . Max Security . | . . . . . . Squads Dispatched 1 | . . 1 . . . Investigation 1 | . . 1 . . . Extermination . | . . . . . . Reinforcement . | . . . . . . Assault . | . . . . . . Garrison . | . . . . . . Intercept . | . . . . . . Construction Impeded . | . . . . . . Haulers Reinforced . | . . . . . . Stealth | -11 -10 -10 -9 -8 -8 --------- Run | Scr Mat Min Mat Mat Gar Distress Signals 1 | . . . . 1 . Communications Jammed . | . . . . . . Distress Signals . | . . . . . . Times Spotted 26 | . 1 6 5 2 12 Peak Tracking Total 6 | . 3 3 2 2 6 Tactical Retreats 1 | . 1 . . . . Traps | -11 -10 -10 -9 -8 -8 ------- Run | Scr Mat Min Mat Mat Gar Traps Triggered 1 | . . . . . 1 Indirectly . | . . . . . . Trap Hack Attempts . | . . . . . . Triggered . | . . . . . . Disarmed . | . . . . . . Reprogrammed . | . . . . . . Reused . | . . . . . . Traps Extracted . | . . . . . . Installed . | . . . . . . Triggered . | . . . . . . Machines | -11 -10 -10 -9 -8 -8 ---------- Run | Scr Mat Min Mat Mat Gar Machines Disabled 1 | . . . . . 1 Max in Single Turn 1 | . . . . . 1 Garrison Relay 1 | . . . . . 1 Machines Sabotaged . | . . . . . . Garrisons Compromised . | . . . . . . Overloaded Fab Kills . | . . . . . . Fab Network Shutdowns . | . . . . . . Hacking | -11 -10 -10 -9 -8 -8 --------- Run | Scr Mat Min Mat Mat Gar Machines Accessed 8 | . 4 1 . 3 . Terminals 6 | . 4 . . 2 . Fabricators . | . . . . . . Repair Stations . | . . . . . . Recycling Units . | . . . . . . Scanalyzers . | . . . . . . Garrison Access 1 | . . . . 1 . Total Hacks 22 | . 15 1 . 6 . Successful 17 | . 11 1 . 5 . Failed 5 | . 4 . . 1 . Catastrophic 1 | . 1 . . . . Database Lockouts . | . . . . . . Manual 14 | . 9 . . 5 . Terminals 20 | . 15 . . 5 . Fabricators . | . . . . . . Repair Stations . | . . . . . . Recycling Units . | . . . . . . Scanalyzers . | . . . . . . Garrison Access 1 | . . . . 1 . Terminal Hacks 16 | . 11 1 . 4 . Prototype ID Bank 2 | . 2 . . . . Open Door 1 | . . 1 . . . Level Access Points 1 | . 1 . . . . Branch Access Points 2 | . 1 . . 1 . Emergency Access Points 1 | . 1 . . . . Terminal Index 2 | . 1 . . 1 . Locate Traps 2 | . 2 . . . . Maintenance Status 1 | . 1 . . . . Security Status 2 | . 1 . . 1 . Patrol Status 2 | . 1 . . 1 . Fabricator Hacks . | . . . . . . Repair Station Hacks . | . . . . . . Recycling Unit Hacks . | . . . . . . Scanalyzer . | . . . . . . Garrison Access Hacks 1 | . . . . 1 . Unlock Access 1 | . . . . 1 . Unauthorized Hacks . | . . . . . . Terminals . | . . . . . . Fabricators . | . . . . . . Repair Stations . | . . . . . . Recycling Units . | . . . . . . Scanalyzers . | . . . . . . Garrison Access . | . . . . . . Data Cores Recovered . | . . . . . . Used . | . . . . . . Hacking Detections 5 | . 4 . . 1 . Full Trace Events . | . . . . . . Feedback Events . | . . . . . . Feedback Blocked . | . . . . . . Robot Schematics Acquired . | . . . . . . Robots Built . | . . . . . . Matter . | . . . . . . Time . | . . . . . . Total Robot Build Rating . | . . . . . . Part Schematics Acquired . | . . . . . . Parts Built . | . . . . . . Matter . | . . . . . . Time . | . . . . . . Total Part Build Rating . | . . . . . . Parts Repaired . | . . . . . . Time . | . . . . . . Parts Recycled . | . . . . . . Recycled Matter . | . . . . . . Retrieved Matter . | . . . . . . Retrieved Components . | . . . . . . Parts Scanalyzed . | . . . . . . Part Schematics Acquired . | . . . . . . Parts Damaged . | . . . . . . Bothacking | -11 -10 -10 -9 -8 -8 ------------ Run | Scr Mat Min Mat Mat Gar Used RIF Installer . | . . . . . . Robots Hacked . | . . . . . . Non-combat . | . . . . . . Combat . | . . . . . . Robot Hacks Applied . | . . . . . . Relay Couplers Released 1 | . . . . . 1 Machine Destruction 1 | . . . . . 1 Robots Rewired . | . . . . . . Allies Hacked . | . . . . . . Hacks Repelled . | . . . . . . Allies | -11 -10 -10 -9 -8 -8 -------- Run | Scr Mat Min Mat Mat Gar Total Allies . | . . . . . . Largest Group . | . . . . . . Highest-Rated Group . | . . . . . . Highest-Rated Ally . | . . . . . . Total Orders . | . . . . . . Ally Attacks . | . . . . . . Total Damage . | . . . . . . Kills . | . . . . . . Allies Corrupted . | . . . . . . Allies Melted . | . . . . . . Intel | -11 -10 -10 -9 -8 -8 ------- Run | Scr Mat Min Mat Mat Gar Robot Analysis Total . | . . . . . . Derelict Logs Recovered . | . . . . . . Drone Launches . | . . . . . . Drone Recoveries . | . . . . . . Exploration | -11 -10 -10 -9 -8 -8 ------------- Run | Scr Mat Min Mat Mat Gar Turns Passed 1032 | 43 256 320 128 89 196 Spaces Moved 774 | 36 185 224 158 44 127 Core 7 | 3 . 2 2 . . Treads . | . . . . . . Legs . | . . . . . . Wheels 367 | 33 185 149 . . . Hover 252 | . . . 81 44 127 Flight 148 | . . 73 75 . . Fastest Speed 34 | 50 100 34 34 56 56 Average Speed 85 | 95 100 99 46 96 81 Slowest Speed 300 | 100 100 300 100 116 116 Overloaded Moves . | . . . . . . Propulsion Burnouts . | . . . . . . Robots Hopped . | . . . . . . Cave-ins Triggered . | . . . . . . Exploration Rate (%) 21 | 3 40 42 20 7 18 Regions Visited 5 Branch Regions 1 Pre-discovered Areas . | . . . . . . Known Exits Taken 3 | . 1 1 . 1 . Unknown Exits Taken 2 | 1 . . 1 . . Scrap Searched 3 | . . 3 . . . Spaces Dug . | . . . . . . Terrain Destroyed . | . . . . . . Melee . | . . . . . . Projectile . | . . . . . . AOE . | . . . . . . Actions | -11 -10 -10 -9 -8 -8 --------- Run | Scr Mat Min Mat Mat Gar Total 1058 | 41 254 282 202 89 190 Wait 168 | . 67 15 22 34 30 Move 770 | 35 184 223 157 44 127 Hop . | . . . . . . Pick Up 7 | . . . 3 3 1 Fast Attach 23 | 6 3 10 2 . 2 Attach 6 | . . . 3 3 . Detach . | . . . . . . Swap . | . . . . . . Drop 18 | . . 9 6 2 1 Fire 40 | . . 19 6 1 14 Melee . | . . . . . . Ram . | . . . . . . Kick . | . . . . . . Crush . | . . . . . . Escape Stasis 13 | . . . . . 13 Rewire . | . . . . . . Trap . | . . . . . . Miscellaneous 13 | . . 6 3 2 2 Route ------- -11/Scrapyard -10/Materials (discovered 5 exits: *Mat x3 / *Min x2) -10/Mines (discovered 2 exits: *Mat x2) -9/Materials -8/Materials -8/Garrison History --------- Turn | Location | Event 1 | -11/Scrapyard | Upgraded with Power slot (x1) 1 | -11/Scrapyard | Upgraded with Propulsion slot (x1) 1 | -11/Scrapyard | Upgraded with Utility slot (x2) 1 | -11/Scrapyard | Upgraded with Weapon slot (x1) 8 | -11/Scrapyard | Discovered new exit (range 16) 44 | -11/Scrapyard | Entered Materials 52 | -10/Materials | Identified exit to Mines 52 | -10/Materials | Identified exit to Materials 300 | -10/Materials | Entered Mines 308 | -10/Mines | Build established: Mutant 548 | -10/Mines | Discovered exit to Materials (range 7) 567 | -10/Mines | Met a Derelict shopkeep closing up shop 573 | -10/Mines | Reached level 2 576 | -10/Mines | Upgraded with Propulsion slot (x1) 616 | -10/Mines | Discovered exit to Materials (range 20) 620 | -10/Mines | Entered Materials 622 | -9/Materials | Reached level 3 623 | -9/Materials | Upgraded with Utility slot (x1) 740 | -9/Materials | Discovered new exit (range 14) 748 | -9/Materials | Entered another Materials area 750 | -8/Materials | Reached level 4 750 | -8/Materials | Upgraded with Power slot (x1) 837 | -8/Materials | Identified exit to Garrison 837 | -8/Materials | Entered Garrison 874 | -8/Garrison | Triggered checkpoint 917 | -8/Garrison | Garrison Relay disabled 917 | -8/Garrison | Reached level 5 1020 | -8/Garrison | Triggered checkpoint 1027 | -8/Garrison | Triggered checkpoint 1031 | -8/Garrison | Core integrity fell below 50% 1033 | -8/Garrison | Self-destructed Last Messages --------------- 00967_ Field strength at 93. 00969_ Field strength at 86. 00970_ Field strength at 79. 00971_ Field strength at 72. 00972_ Field strength at 65. 00973_ Field strength at 58. 00974_ Field strength at 51. 00975_ Field strength at 44. 00976_ Field strength at 37. 00977_ Field strength at 30. 00978_ Field strength at 23. 00979_ Field strength at 16. 00980_ Field strength at 9. 00981_ Field strength at 2. 00982_ Stasis field depleted. 01000_ ALERT: Garrison interior compromised. 01024_ L-31 Rogue destroyed. 01027_ G-47 Trooper knocked back. 01027_ Beams of light sweep through the air. An alarm sounds. 01030_ G-47 Trooper knocked back. Map ----- +----------------------------------------------------+ | ?????????????????????????????????????????????????? | | ?????????????????????????????????????????????????? | | ?????????????????????????????????????????????????? | | ?????????????????????????????????????????????????? | | ?????????????????????????????????????????????????? | | ?????????????????????????????????????????????????? | | ?????????????????????????????????????????????????? | | ?????????????????????????????????????????????????? | | ?????????????????????????????????????????????????? | | ?????????????????????????????????????????????????? | | ?????????????????????????????????????????????????? | | ?????????????????????????????????????????????????? | | ?????????????????????????????????????????????????? | | ???????????????"?????????????????????????????????? | | ????????????? ?????????????????????????????????? | | ????????????? ????????????????????????????????? | | ????????????? ???????????????????????????????? | | ??????????????# ??????????????????????????????? | | ?????????????## ##????????????????????????????? | | ?????????????? ???????????????????????????? | | ??????????????? ???????????????????????????? | | ????????????????? ??????????????????????????? | | ??????????????????? ??????????????????????????? | | ??????????????# ????# ?????????????????????????? | | ???????????? ## ## g ############?????????????? | | ?????????# %/ g@ #?????????????? | | ?????????# * g #???????####??? | | ?????????# g g #?????### ###? | | ?????????? ## g ############# #?????#"# #? | | ??????????????# ??????????????# #?????# [ #? | | ???????????????????????????????# #?????#" [ ## | | ???????????????????????????????# #?????#" = = + | | ???????????????????????????????# #?????#"# =#? | | ???????????????????????????????# #?????### ###? | | ???????????????????????????????# ^ ######### #### | | ???????????????????????????????# = * | | ???????????????????????????????# = | | ???????????????????????????????# ############### | | ???????????????????????????????# #?????????????? | | ???????????????????????????????# #?????????????? | | ???????????????????????????????# #?????????????? | | ???????????????????????????????# #?????????????? | | ???????????????????????????????# #?????????????? | | ???????????????????????????????# #?????????????? | | ???????????????????????????????# #?????????????? | | ???????????????????????????????# #?????????????? | | ???????????????????????????????# #?????????????? | | ???????????????????????????????# #?????????????? | | ???????????????????????????????# #?????????????? | | ???????????????????????????????# #?????????????? | +----------------------------------------------------+ Best States ------------- Heat Dissipation 31 Energy Generation 20 Energy Capacity 175 Matter Stores 382 Matter Capacity 450 Sight Range 16 Robot Scan Range 21 Terrain Scan Range 20 Terrain Scan Density 110 Evasion (%) 63 Particle Charging 15 Offensive Hacking 10 Item Schematics ----------------- None Robot Schematics ------------------ None Fabricated ------------ Nothing Alien Tech Used ----------------- None Achievements -------------- Omniscient Cartographer Challenges ------------ None RPGLIKE | -11 -10 -10 -9 -8 -8 --------- Run | Scr Mat Min Mat Mat Gar Levels Raised 4 | . . 1 1 1 1 XP Earned 9265 | 3000 195 1350 1500 1720 1500 XP Spent 7475 | 3000 . 1500 1500 1475 . Upgrades 19 | 6 . 3 5 5 . Power Slot 2 | 1 . . . 1 . Propulsion Slot 2 | 1 . 1 . . . Utility Slot 3 | 2 . . 1 . . Weapon Slot 1 | 1 . . . . . Core Integrity 1 | . . . 1 . . Heat Dissipation 1 | . . . . 1 . Mass Support 2 | . . 2 . . . Inventory Capacity 1 | . . . 1 . . Sensor Range 4 | . . . 2 2 . Hack Attack % 2 | 1 . . . 1 . Protomatter Created 141 | . . 46 . 49 46 Integrity Restored 237 | . . 111 68 28 30 Core 209 | . . 111 68 . 30 Parts 28 | . . . . 28 . Protomatter Decayed 9 | . . 9 . . . Game ------ Seed MediumHypercooledWeb Manual? 0 Play Time 00:24:43 Cumulative 34.2 hours Start 2020.01.18 @ 17:14:30 End 2020.01.18 @ 17:38:13 Sessions 1 Manual Loads 0 Difficulty Rogue Special Mode Winter2019/RPGLIKE Game No. 58 Rogue 58 Adventurer 0 Explorer 0 Win Type - Total 1 Types 1/0/0/0/0/0/0 Lore% 29 Gallery% 32 Achievement% 28 Wizard Run 0 Options --------- ASCII 0 Keyboard 0 Movement Mouse Keybinds 0 Fullscreen 1 Font 18/SmallcapsGlow Map View 76x50 Tactical HUD 1 Map Filters NONE Filters NONE Steam 1 RUN: 5c01ef88-5137-465b-85d9-102fbe331f8d